[Event "European Women Rapid-ch 2023"]
[Site "Monaco"]
[Date "2024.01.13"]
[Round "3.6"]
[White "Unuk, Laura"]
[Black "Wagner, Dinara"]
[Result "1/2-1/2"]
[ECO "D11"]
[WhiteElo "2346"]
[BlackElo "2459"]
[Annotator "RC"]
[PlyCount "58"]
[EventDate "2023.12.19"]
[EventType "swiss"]
[EventCountry "MNC"]
[SourceTitle "playchess.com"]
[Source "ChessBase"]
[SourceQuality "1"]
[TimeControl "900+10"]

1. d4 {[%emt 0:00:03]} Nf6 {[%emt 0:00:01]} 2. Nf3 {[%emt 0:00:05]} d5 {[%emt 0:00:02]} 3. g3 {[%emt 0:00:04]} Bf5 {[%emt 0:00:06]} 4. Bg2 {[%emt 0:00:02]} h6 {[%emt 0:00:05]} 5. O-O {[%emt 0:00:20]} e6 {[%emt 0:00:03]} 6. c4 {[%emt 0:00:21]} c6 {[%emt 0:00:02]} 7. Nc3 {[%emt 0:00:27]} Be7 {[%emt 0:00:19]} 8. Qb3 {[%emt 0:00:34]} Qb6 {[%emt 0:00:35]} 9. c5 {[%emt 0:00:14]} Qxb3 {[%emt 0:00:25]} 10. axb3 {[%emt 0:00:03]} a6 {[%emt 0:00:01]} 11. b4 {[%emt 0:00:20]} O-O {[%emt 0:00:03]} 12. b5 {[%emt 0:00:42]} cxb5 {[%emt 0:00:01]} 13. Nxb5 {[%emt 0:00:05]} Nc6 {[%emt 0:00:01]} 14. Nc3 {[%emt 0:00:16]} Nd7 {[%emt 0:00:55]} 15. Na4 {[%emt 0:02:18]} Bf6 {[%emt 0:02:48]} 16. Rd1 {[%emt 0:02:08]} Bc2 {[%emt 0:05:41]} 17. Rd2 {[%emt 0:00:06]} Be4 {[%emt 0:00:32]} 18. e3 {[%emt 0:00:33]} Rfb8 {[%emt 0:00:11]} 19. Nc3 {[%emt 0:01:07]} Bg6 {[%emt 0:00:22]} 20. Bf1 {[%emt 0:00:23]} b6 {[%emt 0:01:30]} 21. cxb6 {[%emt 0:00:32]} Rxb6 {[%emt 0:00:01]} 22. Ne1 {[%emt 0:00:48]} Nb4 {[%emt 0:01:16]} 23. Nd3 {[%emt 0:03:41]} Nxd3 {[%emt 0:00:02]} 24. Bxd3 {[%emt 0:00:02]} Bxd3 {[%emt 0:00:01]} 25. Rxd3 {[%emt 0:00:03]} Rb3 {[%emt 0:00:13]} 26. Kf1 {[%emt 0:00:01]} Bd8 {[%emt 0:01:14]} 27. Ke2 {[%emt 0:00:08]} Rb6 {[%emt 0:01:27]} 28. Na4 {[%emt 0:00:12]} Rc6 {[%emt 0:00:01]} 29. Bd2 {[%emt 0:00:01]} Rac8 {[%emt 0:00:54]} 1/2-1/2

[Event "European Women Rapid-ch 2023"]
[Site "Monaco"]
[Date "2024.01.13"]
[Round "3.7"]
[White "Batsiashvili, Nino"]
[Black "Movsesian, Julia"]
[Result "1-0"]
[ECO "D37"]
[WhiteElo "2451"]
[BlackElo "2257"]
[Annotator "RC"]
[PlyCount "87"]
[EventDate "2023.12.19"]
[EventType "swiss"]
[EventCountry "MNC"]
[SourceTitle "playchess.com"]
[Source "ChessBase"]
[SourceQuality "1"]
[TimeControl "900+10"]

1. d4 {[%emt 0:00:02]} d5 {[%emt 0:00:02]} 2. c4 {[%emt 0:00:03]} e6 {[%emt 0:00:01]} 3. Nc3 {[%emt 0:00:02]} Nf6 {[%emt 0:00:02]} 4. Nf3 {[%emt 0:00:02]} Be7 {[%emt 0:00:10]} 5. Bf4 {[%emt 0:00:01]} O-O {[%emt 0:00:31]} 6. e3 {[%emt 0:00:02]} a6 {[%emt 0:00:45]} 7. Rc1 {[%emt 0:00:17]} dxc4 {[%emt 0:00:44]} 8. Bxc4 {[%emt 0:00:35]} c5 {[%emt 0:00:18]} 9. O-O {[%emt 0:00:31]} b5 {[%emt 0:00:46]} 10. Be2 {[%emt 0:00:53]} Nbd7 {[%emt 0:01:26]} 11. d5 {[%emt 0:01:36]} exd5 {[%emt 0:00:36]} 12. Nxd5 {[%emt 0:00:02]} Nxd5 {[%emt 0:00:13]} 13. Qxd5 {[%emt 0:00:01]} Ra7 {[%emt 0:00:01]} 14. Rfd1 {[%emt 0:00:06]} Qb6 {[%emt 0:00:18]} 15. Bd6 {[%emt 0:01:34]} Bb7 {[%emt 0:00:45]} 16. Qd2 {[%emt 0:00:15]} Bxd6 {[%emt 0:01:08]} 17. Qxd6 {[%emt 0:00:02]} Qxd6 {[%emt 0:00:11]} 18. Rxd6 {[%emt 0:00:01]} Bxf3 {[%emt 0:00:06]} 19. Bxf3 {[%emt 0:00:19]} c4 {[%emt 0:00:02]} 20. b3 {[%emt 0:02:39]} Ne5 {[%emt 0:01:32]} 21. bxc4 {[%emt 0:00:24]} Nxc4 {[%emt 0:00:08]} 22. Rd4 {[%emt 0:00:16]} Rc7 {[%emt 0:00:46]} 23. Bd5 {[%emt 0:00:57]} Rb8 {[%emt 0:00:23]} 24. g4 {[%emt 0:00:14]} Rbc8 {[%emt 0:00:34]} 25. Bxc4 {[%emt 0:00:43]} bxc4 {[%emt 0:00:01]} 26. Rc3 {[%emt 0:00:02]} Rc5 {[%emt 0:00:10]} 27. Kg2 {[%emt 0:00:03]} g6 {[%emt 0:00:21]} 28. f4 {[%emt 0:01:20]} Kg7 {[%emt 0:00:02]} 29. Kf3 {[%emt 0:00:01]} R8c7 {[%emt 0:00:42]} 30. e4 {[%emt 0:00:25]} Ra5 {[%emt 0:00:24]} 31. Rd2 {[%emt 0:00:51]} Ra4 {[%emt 0:00:29]} 32. e5 {[%emt 0:00:18]} Rc5 {[%emt 0:02:12]} 33. Ke4 {[%emt 0:00:29]} Rca5 {[%emt 0:00:08]} 34. f5 {[%emt 0:00:43]} Rxa2 {[%emt 0:00:49]} 35. f6+ {[%emt 0:00:49]} Kh6 {[%emt 0:00:00]} 36. Rxa2 {[%emt 0:01:48]} Rxa2 {[%emt 0:00:01]} 37. h4 {[%emt 0:00:01]} Re2+ {[%emt 0:01:00]} 38. Kd5 {[%emt 0:00:10]} Rd2+ {[%emt 0:00:56]} 39. Kxc4 {[%emt 0:00:09]} Rg2 {[%emt 0:00:09]} 40. Kd5 {[%emt 0:00:48]} Rxg4 {[%emt 0:00:24]} 41. Rc7 {[%emt 0:00:02]} g5 {[%emt 0:00:24]} 42. h5 {[%emt 0:00:49]} a5 {[%emt 0:01:50]} 43. Rxf7 {[%emt 0:00:02]} a4 {[%emt 0:00:01]} 44. e6 {[%emt 0:00:21]} 1-0

[Event "European Women Rapid-ch 2023"]
[Site "Monaco"]
[Date "2024.01.13"]
[Round "3.8"]
[White "Charkhalashvili, Inga"]
[Black "Vega Gutierrez, Sabrina"]
[Result "1/2-1/2"]
[ECO "D63"]
[WhiteElo "2239"]
[BlackElo "2378"]
[Annotator "RC"]
[PlyCount "93"]
[EventDate "2023.12.19"]
[EventType "swiss"]
[EventCountry "MNC"]
[SourceTitle "playchess.com"]
[Source "ChessBase"]
[SourceQuality "1"]
[TimeControl "900+10"]

1. d4 {[%emt 0:00:02]} d5 {[%emt 0:00:01]} 2. c4 {[%emt 0:00:04]} e6 {[%emt 0:00:02]} 3. Nc3 {[%emt 0:00:03]} Nf6 {[%emt 0:00:02]} 4. Bg5 {[%emt 0:00:05]} Be7 {[%emt 0:02:54]} 5. e3 {[%emt 0:00:20]} a6 {[%emt 0:00:05]} 6. Nf3 {[%emt 0:00:04]} O-O {[%emt 0:00:25]} 7. Rc1 {[%emt 0:00:52]} Nbd7 {[%emt 0:01:11]} 8. cxd5 {[%emt 0:00:25]} exd5 {[%emt 0:00:42]} 9. Bd3 {[%emt 0:00:03]} c6 {[%emt 0:00:24]} 10. O-O {[%emt 0:00:18]} Ne4 {[%emt 0:00:32]} 11. Bxe7 {[%emt 0:01:20]} Qxe7 {[%emt 0:00:02]} 12. Bxe4 {[%emt 0:00:28]} dxe4 {[%emt 0:00:02]} 13. Nd2 {[%emt 0:00:06]} Nf6 {[%emt 0:00:18]} 14. f3 {[%emt 0:00:53]} exf3 {[%emt 0:01:05]} 15. Qxf3 {[%emt 0:00:03]} Bg4 {[%emt 0:02:18]} 16. Qg3 {[%emt 0:00:05]} Bh5 {[%emt 0:00:01]} 17. e4 {[%emt 0:03:33]} Rad8 {[%emt 0:00:25]} 18. e5 {[%emt 0:00:16]} Nd5 {[%emt 0:00:02]} 19. Nde4 {[%emt 0:00:15]} Bg6 {[%emt 0:01:43]} 20. Nd6 {[%emt 0:00:48]} f6 {[%emt 0:00:09]} 21. Nxd5 {[%emt 0:01:13]} cxd5 {[%emt 0:00:03]} 22. Qb3 {[%emt 0:00:55]} Qe6 {[%emt 0:00:24]} 23. Nxb7 {[%emt 0:00:29]} Rb8 {[%emt 0:00:38]} 24. Nc5 {[%emt 0:00:09]} Qc6 {[%emt 0:00:03]} 25. Qe3 {[%emt 0:01:54]} fxe5 {[%emt 0:00:59]} 26. Rxf8+ {[%emt 0:00:16]} Rxf8 {[%emt 0:00:04]} 27. Qxe5 {[%emt 0:00:14]} Re8 {[%emt 0:00:06]} 28. Qg3 {[%emt 0:00:35]} Qf6 {[%emt 0:00:31]} 29. Qf2 {[%emt 0:00:17]} Qb6 {[%emt 0:01:54]} 30. Re1 {[%emt 0:00:23]} Be4 {[%emt 0:00:18]} 31. Rf1 {[%emt 0:00:53]} Qg6 {[%emt 0:01:05]} 32. Nd7 {[%emt 0:00:38]} h6 {[%emt 0:00:02]} 33. Ne5 {[%emt 0:00:02]} Qe6 {[%emt 0:00:19]} 34. Rc1 {[%emt 0:01:05]} Rf8 {[%emt 0:00:01]} 35. Qd2 {[%emt 0:00:22]} Rf5 {[%emt 0:00:14]} 36. Rc6 {[%emt 0:00:37]} Qe8 {[%emt 0:00:01]} 37. Qc1 {[%emt 0:00:40]} Qh5 {[%emt 0:00:17]} 38. Rc3 {[%emt 0:00:21]} Qe2 {[%emt 0:00:10]} 39. Nf3 {[%emt 0:00:07]} Bxf3 {[%emt 0:00:19]} 40. Rxf3 {[%emt 0:00:03]} Rxf3 {[%emt 0:00:07]} 41. gxf3 {[%emt 0:00:02]} Qxf3 {[%emt 0:00:03]} 42. Qc8+ {[%emt 0:00:21]} Kh7 {[%emt 0:00:19]} 43. Qc2+ {[%emt 0:00:02]} Kg8 {[%emt 0:00:05]} 44. Qc8+ {[%emt 0:00:16]} Kf7 {[%emt 0:00:12]} 45. Qb7+ {[%emt 0:00:07]} Kg8 {[%emt 0:00:19]} 46. Qc8+ {[%emt 0:00:03]} Kh7 {[%emt 0:00:02]} 47. Qc2+ {[%emt 0:00:01]} 1/2-1/2

[Event "European Women Rapid-ch 2023"]
[Site "Monaco"]
[Date "2024.01.13"]
[Round "3.9"]
[White "Zimina, Olga"]
[Black "Haussernot, Cecile"]
[Result "1-0"]
[ECO "D02"]
[WhiteElo "2291"]
[BlackElo "2136"]
[Annotator "TA"]
[PlyCount "113"]
[EventDate "2023.12.19"]
[EventType "swiss"]
[EventCountry "MNC"]
[SourceTitle "playchess.com"]
[Source "ChessBase"]
[SourceQuality "1"]
[TimeControl "900+10"]

{[%evp 14,113,12,2,18,20,28,22,22,22,17,-25,-25,-31,-26,-27,0,0,40,35,64,67,69,60,83,87,80,77,99,81,95,99,110,88,106,106,114,99,113,56,176,174,655,0,0,0,0,0,0,0,0,0,0,0,0,0,0,-45,0,-8,-8,-8,-8,-8,-8,-8,-8,-8,0,-30,0,0,0,0,0,0,0,0,17,17,17,17,17,17,17,17,79,17,17,17,17,17,29978,29978,29980,29981,29981,29982,29984,29985,29985,29986]} 1. d4 {[%emt 0:00:02]} d5 {[%emt 0:00:04]} 2. Nf3 {[%emt 0:00:03]} Nf6 {[%emt 0:00:05]} 3. g3 {[%emt 0:00:03]} Bf5 {[%emt 0:02:31]} 4. Nh4 {[%emt 0:00:03]} Be4 {[%emt 0:00:29]} 5. f3 {[%emt 0:00:02]} Bg6 {[%emt 0:00:02]} 6. Nxg6 {[%emt 0:00:19] D02: Damenbauernspiele.} hxg6 {[%emt 0:00:02]} 7. c3 $146 {[%emt 0:00:02]} ({Predecessor:} 7. Bg2 c5 8. c3 e6 9. Be3 Qc7 10. O-O Nbd7 11. Bf2 e5 12. Nd2 Bd6 13. e4 dxe4 14. dxe5 Nxe5 15. Nxe4 Nxe4 {1-0 Bryakin,M (2437)-Ibadov,D (2308) Pozarevac Rudar 7th 2022 (9)}) 7... Nbd7 {[%emt 0:02:28]} 8. Qb3 {[%emt 0:00:26]} Qc8 {[%emt 0:01:21]} 9. Bg2 {[%emt 0:00:11]} c5 {[%emt 0:00:29]} 10. O-O {[%emt 0:00:14]} e5 {[%emt 0:00:44]} 11. dxe5 {[%emt 0:00:59]} Nxe5 {[%emt 0:00:02]} 12. Bg5 {[%emt 0:00:35]} c4 {[%emt 0:00:43]} 13. Qb5+ {[%emt 0:02:25]} Ned7 {[%emt 0:00:09]} 14. Bxf6 {[%emt 0:00:31]} gxf6 {[%emt 0:00:18]} 15. Qxd5 {[%emt 0:00:07]} Ne5 {[%emt 0:00:47]} 16. Qb5+ {[%emt 0:00:42]} Qd7 {[%emt 0:01:13]} 17. Qxd7+ {[%emt 0:00:12]} Kxd7 {[%emt 0:00:02]} 18. Rd1+ {[%emt 0:03:36]} Kc7 {[%emt 0:01:01]} 19. h3 {[%emt 0:00:04]} Bc5+ {[%emt 0:00:53]} 20. Kf1 {[%emt 0:00:02]} g5 {[%emt 0:01:05]} 21. b4 {[%emt 0:00:10]} Be3 {[%emt 0:00:11]} 22. Na3 {[%emt 0:00:20]} Rad8 {[%emt 0:02:30]} 23. Nb5+ {[%emt 0:02:26]} Kb6 {[%emt 0:00:03]} 24. a4 {[%emt 0:00:12]} f5 {[%emt 0:01:31]} 25. Nd6 {[%emt 0:01:17]} (25. Rd6+ {vereinfacht} Rxd6 26. Nxd6 f4 27. Rd1) 25... f4 {[%emt 0:00:13]} 26. Rd5 {[%emt 0:00:02]} (26. g4 $16) 26... f6 {[%emt 0:00:22]} (26... Kc6 $1 $14 27. Rad1 (27. Rxe5 Rxd6 28. Rxg5 Rhd8 $11) 27... Nd3 28. exd3 Kxd5 29. Nxf7 Rc8 30. Nxh8 (30. Nxg5 cxd3 31. Rxd3+ Kc4 $11) 30... Rxh8) 27. Rad1 $18 {[%emt 0:00:09]} fxg3 $2 {[%emt 0:00:08] [#]} (27... Kc7 28. h4 a6 29. hxg5 fxg5) 28. Nxc4+ $2 {[%emt 0:01:27]} (28. f4 $1 $18 {[%mdl 512] Weiss will mit Rb5+ Matt setzen.} Nd3 (28... Rxd6 29. Rxd6+) 29. Nxc4+ (29. exd3 Bxf4 30. dxc4 Bxd6 $18) 29... Kc7 30. Nxe3 (30. R1xd3 Rxd5 31. Rxd5 gxf4 $18) 30... Nxf4 31. Rxd8 Rxd8 32. Rxd8 Kxd8 33. Nd5 (33. Bxb7 Nxh3 34. Bf3 Nf4 $18)) 28... Nxc4 $11 {[%emt 0:00:03]} 29. Rxd8 {[%emt 0:00:01]} Rxd8 {[%emt 0:00:03]} 30. Rxd8 {[%emt 0:00:01]} Bf2 {[%emt 0:00:01]} 31. Rd3 {[%emt 0:00:41]} Ne3+ {[%emt 0:00:06]} 32. Rxe3 {[%emt 0:00:01]} Bxe3 {[%emt 0:00:01]} 33. Ke1 {[%emt 0:00:02]} f5 {[%emt 0:00:14]} 34. f4 {[%emt 0:00:26]} Bxf4 {[%emt 0:00:12]} 35. Kd1 {[%emt 0:00:44]} a5 {[%emt 0:00:04]} 36. Kc2 {[%emt 0:00:03]} Be3 {[%emt 0:00:36]} 37. Kd3 {[%emt 0:00:06]} f4 {[%emt 0:00:02]} 38. Bf3 {[%emt 0:00:16]} axb4 {[%emt 0:00:09]} 39. cxb4 {[%emt 0:00:02]} Kc7 {[%emt 0:00:08]} 40. Kc4 {[%emt 0:00:02]} Bf2 {[%emt 0:00:20]} 41. Kb5 {[%emt 0:00:37]} Be3 {[%emt 0:00:08]} 42. a5 {[%emt 0:00:21]} Bd2 {[%emt 0:00:02]} 43. Ka4 {[%emt 0:00:03]} Kb8 {[%emt 0:00:31]} 44. b5 {[%emt 0:00:26]} Ka7 {[%emt 0:00:05]} 45. Be4 {[%emt 0:00:09]} b6 {[%emt 0:00:09]} 46. a6 $1 {[%emt 0:00:06]} Be3 {[%emt 0:00:08]} 47. Kb3 {[%emt 0:00:01]} Bd2 {[%emt 0:00:02]} 48. Kc4 {[%emt 0:00:01]} Be3 {[%emt 0:00:14]} 49. Bf3 {[%emt 0:00:02]} Bc5 {[%emt 0:00:10] [#]} (49... Kb8 $11) 50. Kd5 {[%emt 0:00:02]} (50. e4 $1 $16 {[%cal Re4e5] Droht Matt per e5.} fxe3 51. Kd3) 50... Bf2 {[%emt 0:00:23]} 51. Ke6 {[%emt 0:00:09]} Bc5 {[%emt 0:00:02]} 52. Kf6 {[%emt 0:00:03]} g2 $2 {[%emt 0:00:05][%mdl 8192]} (52... Be3 $11) 53. Bxg2 {[%emt 0:00:03]} Be3 {[%emt 0:00:03]} 54. Bf3 {[%emt 0:00:05]} (54. Kxg5 {ist ein Selbstmatt.} f3+ 55. Kh5 fxg2 (55... fxe2 $2 56. Kg4 $19) 56. h4 Bd2 (56... g1=N $2 57. Kg4 $19) 57. Kg6 g1=Q+ (57... g1=B $2 58. e4 $19) 58. Kf5 Qe3 59. Kf6 Qe4 (59... Qxe2 {wird mattgesetzt.} 60. Kf5 Bc1 61. h5 Bh6 62. Kf6 Qe4 63. Kf7 Qe5 64. Kg6 Qe6+ 65. Kh7 Qf6 66. Kg8 Qg7#) 60. h5 Bf4 (60... Qxe2 61. Kf5 Qf3+ 62. Ke5 Bc3+ 63. Ke6 Qxh5 64. Kd7 Qf5+ 65. Ke7 Qd5 66. Ke8 Bf6 67. Kf8 Qd7 68. Kg8 Qg7#) 61. h6 Bxh6 62. e3 Bxe3 63. Kg7 Qf5 64. Kh8 Bd4+ (64... Qxb5 65. Kg7 Qf5 66. Kh8 Bd4+ 67. Kg8 Qg6+ 68. Kf8 Bc5#) 65. Kg8 Qg6+ 66. Kf8 Bc5#) 54... Bc5 {[%emt 0:00:32]} 55. Kxg5 {[%emt 0:00:03]} Be7+ {[%emt 0:00:05]} 56. Kxf4 {[%emt 0:00:03]} Bd6+ {[%emt 0:00:02]} 57. Kf5 {[%emt 0:00:02]} 1-0

[Event "European Women Rapid-ch 2023"]
[Site "Monaco"]
[Date "2024.01.13"]
[Round "3.10"]
[White "Osmak, Yuliia"]
[Black "Rudzinska, Michalina"]
[Result "1-0"]
[ECO "B13"]
[WhiteElo "2450"]
[BlackElo "2241"]
[Annotator "RC"]
[PlyCount "105"]
[EventDate "2023.12.19"]
[EventType "swiss"]
[EventCountry "MNC"]
[SourceTitle "playchess.com"]
[Source "ChessBase"]
[SourceQuality "1"]
[TimeControl "900+10"]

1. e4 {[%emt 0:00:04]} c6 {[%emt 0:00:03]} 2. d4 {[%emt 0:00:02]} d5 {[%emt 0:00:02]} 3. exd5 {[%emt 0:00:01]} cxd5 {[%emt 0:00:02]} 4. Bd3 {[%emt 0:00:04]} Nf6 {[%emt 0:00:04]} 5. h3 {[%emt 0:00:04]} Nc6 {[%emt 0:00:03]} 6. c3 {[%emt 0:00:04]} g6 {[%emt 0:00:04]} 7. Nf3 {[%emt 0:00:10]} Bf5 {[%emt 0:00:04]} 8. Be2 {[%emt 0:00:03]} e6 {[%emt 0:00:31]} 9. Bf4 {[%emt 0:00:41]} h6 {[%emt 0:00:47]} 10. Qb3 {[%emt 0:00:48]} Qc8 {[%emt 0:02:16]} 11. Nbd2 {[%emt 0:00:37]} g5 {[%emt 0:00:05]} 12. Bh2 {[%emt 0:00:40]} Be7 {[%emt 0:00:44]} 13. Ne5 {[%emt 0:00:48]} Ne4 {[%emt 0:01:54]} 14. Nxe4 {[%emt 0:01:24]} Bxe4 {[%emt 0:00:16]} 15. O-O {[%emt 0:00:06]} h5 {[%emt 0:01:12]} 16. f4 {[%emt 0:03:06]} g4 {[%emt 0:01:10]} 17. hxg4 {[%emt 0:00:15]} hxg4 {[%emt 0:00:01]} 18. Bxg4 {[%emt 0:00:10]} f5 {[%emt 0:00:30]} 19. Bf3 {[%emt 0:00:16]} Nxe5 {[%emt 0:00:55]} 20. fxe5 {[%emt 0:00:10]} Bxf3 {[%emt 0:00:58]} 21. Rxf3 {[%emt 0:00:09]} Kf7 {[%emt 0:01:30]} 22. Raf1 {[%emt 0:00:04]} Rh5 {[%emt 0:00:20]} 23. Bf4 {[%emt 0:01:27]} Qh8 {[%emt 0:00:18]} 24. Kf2 {[%emt 0:00:23]} Rg8 {[%emt 0:00:22]} 25. Rg1 {[%emt 0:01:53]} Rh1 {[%emt 0:01:33]} 26. Qd1 {[%emt 0:01:17]} Qh4+ {[%emt 0:01:08]} 27. Ke3 {[%emt 0:00:02]} Rxg1 {[%emt 0:01:03]} 28. Qxg1 {[%emt 0:00:02]} Bg5 {[%emt 0:00:14]} 29. Qf2 {[%emt 0:01:23]} Bxf4+ {[%emt 0:00:52]} 30. Rxf4 {[%emt 0:00:02]} Rg3+ {[%emt 0:00:04]} 31. Rf3 {[%emt 0:00:47]} Qg5+ {[%emt 0:00:02]} 32. Kd3 {[%emt 0:00:18]} Rxg2 {[%emt 0:00:02]} 33. Qe3 {[%emt 0:00:20]} Qg4 {[%emt 0:00:21]} 34. Qf4 {[%emt 0:01:52]} Qxf4 {[%emt 0:00:02]} 35. Rxf4 {[%emt 0:00:01]} Rxb2 {[%emt 0:00:02]} 36. Rh4 {[%emt 0:00:11]} Kg6 {[%emt 0:00:09]} 37. a4 {[%emt 0:00:07]} Ra2 {[%emt 0:00:03]} 38. Rh8 {[%emt 0:00:08]} Rxa4 {[%emt 0:00:02]} 39. Rb8 {[%emt 0:00:20]} f4 {[%emt 0:01:30]} 40. Rxb7 {[%emt 0:00:11]} Ra6 {[%emt 0:00:13]} 41. Rc7 {[%emt 0:00:42]} Kf5 {[%emt 0:00:07]} 42. Rf7+ {[%emt 0:00:33]} Kg4 {[%emt 0:00:03]} 43. Rg7+ {[%emt 0:00:00]} Kf3 {[%emt 0:00:01]} 44. Rd7 {[%emt 0:00:03]} Kg2 {[%emt 0:00:20]} 45. Rd6 {[%emt 0:00:12]} Rb6 {[%emt 0:00:02]} 46. Rd7 {[%emt 0:00:09]} a6 {[%emt 0:00:15]} 47. Rd6 {[%emt 0:00:08]} f3 {[%emt 0:00:16]} 48. Rxb6 {[%emt 0:00:06]} f2 {[%emt 0:00:02]} 49. Rb1 {[%emt 0:00:17]} f1=Q+ {[%emt 0:00:29]} 50. Rxf1 {[%emt 0:00:01]} Kxf1 {[%emt 0:00:02]} 51. c4 {[%emt 0:00:01]} dxc4+ {[%emt 0:00:08]} 52. Kxc4 {[%emt 0:00:01]} a5 {[%emt 0:00:11]} 53. d5 {[%emt 0:00:12]} 1-0

[Event "European Women Rapid-ch 2023"]
[Site "Monaco"]
[Date "2024.01.13"]
[Round "3.11"]
[White "Radeva, Viktoria"]
[Black "Guichard, Pauline"]
[Result "0-1"]
[ECO "C54"]
[WhiteElo "2325"]
[BlackElo "2385"]
[Annotator "RC"]
[PlyCount "112"]
[EventDate "2023.12.19"]
[EventType "swiss"]
[EventCountry "MNC"]
[SourceTitle "playchess.com"]
[Source "ChessBase"]
[SourceQuality "1"]
[TimeControl "900+10"]

1. e4 {[%emt 0:00:03]} e5 {[%emt 0:00:02]} 2. Nf3 {[%emt 0:00:02]} Nc6 {[%emt 0:00:02]} 3. Bc4 {[%emt 0:00:05]} Nf6 {[%emt 0:00:03]} 4. d3 {[%emt 0:00:02]} Bc5 {[%emt 0:00:03]} 5. O-O {[%emt 0:00:05]} d6 {[%emt 0:00:02]} 6. c3 {[%emt 0:00:01]} a6 {[%emt 0:00:02]} 7. a4 {[%emt 0:00:07]} Ba7 {[%emt 0:00:03]} 8. Nbd2 {[%emt 0:00:22]} O-O {[%emt 0:00:04]} 9. h3 {[%emt 0:00:02]} Ne7 {[%emt 0:00:06]} 10. Re1 {[%emt 0:00:08]} Ng6 {[%emt 0:00:04]} 11. Nf1 {[%emt 0:00:33]} c6 {[%emt 0:00:22]} 12. Bb3 {[%emt 0:00:03]} d5 {[%emt 0:00:16]} 13. Ng3 {[%emt 0:01:07]} Be6 {[%emt 0:01:35]} 14. Bc2 {[%emt 0:02:08]} a5 {[%emt 0:01:16]} 15. Be3 {[%emt 0:01:50]} Bxe3 {[%emt 0:00:39]} 16. Rxe3 {[%emt 0:00:02]} Qb6 {[%emt 0:00:02]} 17. Qc1 {[%emt 0:01:23]} dxe4 {[%emt 0:02:02]} 18. dxe4 {[%emt 0:00:07]} h6 {[%emt 0:00:33]} 19. Re1 {[%emt 0:02:00]} Rad8 {[%emt 0:00:24]} 20. Nf5 {[%emt 0:00:09]} Rfe8 {[%emt 0:00:34]} 21. Rb1 {[%emt 0:02:50]} Ba2 {[%emt 0:00:48]} 22. Ra1 {[%emt 0:00:02]} Bc4 {[%emt 0:00:19]} 23. Ne3 {[%emt 0:00:50]} Be6 {[%emt 0:01:14]} 24. Nf5 {[%emt 0:00:15]} Rd7 {[%emt 0:01:39]} 25. g3 {[%emt 0:01:37]} Red8 {[%emt 0:00:29]} 26. Kg2 {[%emt 0:00:17]} Bc4 {[%emt 0:01:42]} 27. Re3 {[%emt 0:00:38]} Qc5 {[%emt 0:00:54]} 28. Qe1 {[%emt 0:01:14]} Qb6 {[%emt 0:00:22]} 29. Qc1 {[%emt 0:00:19]} Bd3 {[%emt 0:01:37]} 30. Rb1 {[%emt 0:00:50]} Qc5 {[%emt 0:01:06]} 31. Ra1 {[%emt 0:00:43]} Qc4 {[%emt 0:00:38]} 32. Nd2 {[%emt 0:00:01]} Qa6 {[%emt 0:00:36]} 33. Nf3 {[%emt 0:00:02]} Qc4 {[%emt 0:00:20]} 34. Nd2 {[%emt 0:00:01]} Qe6 {[%emt 0:00:01]} 35. Nf3 {[%emt 0:00:14]} Ne7 {[%emt 0:00:26]} 36. Nxe7+ {[%emt 0:00:18]} Qxe7 {[%emt 0:00:04]} 37. Nh4 {[%emt 0:00:15]} Bxc2 {[%emt 0:00:15]} 38. Qxc2 {[%emt 0:00:01]} Rd2 {[%emt 0:00:02]} 39. Qb3 {[%emt 0:00:18]} Qc5 {[%emt 0:00:02]} 40. Rf3 {[%emt 0:00:05]} R8d3 {[%emt 0:00:26]} 41. Rf1 {[%emt 0:00:19]} b5 {[%emt 0:00:01]} 42. Rxd3 {[%emt 0:00:17]} Rxd3 {[%emt 0:00:02]} 43. axb5 {[%emt 0:00:02]} cxb5 {[%emt 0:00:05]} 44. Rd1 {[%emt 0:00:19]} Nxe4 {[%emt 0:00:10]} 45. Rf1 {[%emt 0:00:17]} Rd2 {[%emt 0:00:07]} 46. Kf3 {[%emt 0:00:07]} Rxf2+ {[%emt 0:00:50]} 47. Rxf2 {[%emt 0:00:02]} Nxf2 {[%emt 0:00:03]} 48. Ng6 {[%emt 0:00:14]} Nd3 {[%emt 0:00:08]} 49. Ke4 {[%emt 0:00:13]} a4 {[%emt 0:00:17]} 50. Qc2 {[%emt 0:00:17]} Qc6+ {[%emt 0:00:09]} 51. Kxd3 {[%emt 0:00:02]} Qxg6+ 52. Kd2 Qxc2+ {[%emt 0:00:09]} 53. Kxc2 {[%emt 0:00:01]} f5 {[%emt 0:00:02]} 54. b3 {[%emt 0:00:19]} axb3+ {[%emt 0:00:02]} 55. Kxb3 {[%emt 0:00:02]} f4 {[%emt 0:00:01]} 56. gxf4 {[%emt 0:00:01]} exf4 {[%emt 0:00:01]} 0-1